[Event "Titled Tuesday Blitz July 4 Late 2023"]
[White "Graham, Nathaniel"]
[Black "Kanyamarala, Trisha"]
[WhiteFideId "2007983"]
[BlackFideId "45004722"]
[WhiteElo "2066"]
[BlackElo "2360"]
[Result "0-1"]
[Round "5"]
[TimeControl "180+2"]
[Date "2023.07.04"]
[WhiteClock "0:00:00"]
[BlackClock "0:00:39"]
[Board "149"]

1. e4 {[%clk 0:02:55]}  c5 {[%clk 0:02:59]} 2. Nf3 {[%clk 0:02:55]}  d6 {[%clk 0:02:59]} 3. d4 {[%clk 0:02:55]}  cxd4 {[%clk 0:03:00]} 4. Qxd4 {[%clk 0:02:56]}  Nc6 {[%clk 0:02:59]} 5. Bb5 {[%clk 0:02:55]}  Bd7 {[%clk 0:02:58]} 6. Bxc6 {[%clk 0:02:55]}  bxc6 {[%clk 0:02:58]} 7. c4 {[%clk 0:02:54]}  e5 {[%clk 0:02:58]} 8. Qd3 {[%clk 0:02:54]}  Nf6 {[%clk 0:02:58]} 9. Nc3 {[%clk 0:02:54]}  Be7 {[%clk 0:02:59]} 10. O-O {[%clk 0:02:54]}  O-O {[%clk 0:02:58]} 11. Bg5 {[%clk 0:02:49]}  Be6 {[%clk 0:02:55]} 12. Rfd1 {[%clk 0:02:49]}  Qb6 {[%clk 0:02:40]} 13. b3 {[%clk 0:02:40]}  Rfd8 {[%clk 0:02:24]} 14. Rac1 {[%clk 0:02:37]}  h6 {[%clk 0:02:17]} 15. Be3 {[%clk 0:02:35]}  Qb7 {[%clk 0:02:15]} 16. h3 {[%clk 0:02:29]}  d5 {[%clk 0:02:14]} 17. exd5 {[%clk 0:02:04]}  cxd5 {[%clk 0:02:13]} 18. cxd5 {[%clk 0:02:04]}  Nxd5 {[%clk 0:02:12]} 19. Nxd5 {[%clk 0:02:03]}  Bxd5 {[%clk 0:02:11]} 20. Qe2 {[%clk 0:01:55]}  Bxf3 {[%clk 0:02:08]} 21. Qxf3 {[%clk 0:01:55]}  Qxf3 {[%clk 0:02:07]} 22. gxf3 {[%clk 0:01:56]}  Ba3 {[%clk 0:02:06]} 23. Rxd8+ {[%clk 0:01:54]}  Rxd8 {[%clk 0:02:05]} 24. Rc7 {[%clk 0:01:54]}  a5 {[%clk 0:02:02]} 25. Ra7 {[%clk 0:01:49]}  Bb4 {[%clk 0:02:01]} 26. a3 {[%clk 0:01:36]}  Bc3 {[%clk 0:01:53]} 27. Rc7 {[%clk 0:01:29]}  Rd3 {[%clk 0:01:49]} 28. Kf1 {[%clk 0:01:18]}  Bb2 {[%clk 0:01:47]} 29. Rc5 {[%clk 0:00:57]}  Rxb3 {[%clk 0:01:43]} 30. Rxa5 {[%clk 0:00:55]}  Rxa3 {[%clk 0:01:43]} 31. Rxa3 {[%clk 0:00:50]}  Bxa3 {[%clk 0:01:42]} 32. Ke2 {[%clk 0:00:51]}  f5 {[%clk 0:01:41]} 33. Kd3 {[%clk 0:00:50]}  Kf7 {[%clk 0:01:39]} 34. Kc4 {[%clk 0:00:49]}  Ke6 {[%clk 0:01:39]} 35. Bb6 {[%clk 0:00:48]}  Be7 {[%clk 0:01:36]} 36. Ba7 {[%clk 0:00:48]}  g5 {[%clk 0:01:35]} 37. Bb6 {[%clk 0:00:48]}  h5 {[%clk 0:01:35]} 38. Ba7 {[%clk 0:00:47]}  h4 {[%clk 0:01:31]} 39. Kd3 {[%clk 0:00:25]}  g4 {[%clk 0:01:30]} 40. fxg4 {[%clk 0:00:24]}  fxg4 {[%clk 0:01:30]} 41. Ke2 {[%clk 0:00:15]}  gxh3 {[%clk 0:01:20]} 42. Kf1 {[%clk 0:00:15]}  Bd6 {[%clk 0:01:01]} 43. f3 {[%clk 0:00:09]}  Kf5 {[%clk 0:00:46]} 44. Be3 {[%clk 0:00:07]}  Be7 {[%clk 0:00:39]} 45. Kg1 {[%clk 0:00:00]}  Bg5 {[%clk 0:00:39]} 0-1


[Site "https://www.chess.com"]

[Event "Titled Tuesday Blitz July 4 Late 2023"]
[White "Burke, Paul"]
[Black "Zhou, Qiyu"]
[WhiteFideId "2605767"]
[BlackFideId "505161"]
[WhiteElo "1940"]
[BlackElo "2354"]
[Result "0-1"]
[Round "5"]
[TimeControl "180+2"]
[Date "2023.07.04"]
[WhiteClock "0:00:00"]
[BlackClock "0:01:00"]
[Board "150"]

1. e4 {[%clk 0:03:00]}  e5 {[%clk 0:02:59]} 2. Nf3 {[%clk 0:03:00]}  Nc6 {[%clk 0:03:00]} 3. Bc4 {[%clk 0:02:59]}  Bc5 {[%clk 0:03:00]} 4. b4 {[%clk 0:02:58]}  Bxb4 {[%clk 0:02:59]} 5. c3 {[%clk 0:02:56]}  Bd6 {[%clk 0:02:59]} 6. d4 {[%clk 0:02:54]}  Qe7 {[%clk 0:02:59]} 7. O-O {[%clk 0:02:52]}  h6 {[%clk 0:02:53]} 8. Bb2 {[%clk 0:02:23]}  Nf6 {[%clk 0:02:52]} 9. Bd3 {[%clk 0:02:21]}  O-O {[%clk 0:02:50]} 10. h3 {[%clk 0:02:19]}  Nh7 {[%clk 0:02:47]} 11. Nbd2 {[%clk 0:02:17]}  Kh8 {[%clk 0:02:28]} 12. Nc4 {[%clk 0:02:08]}  f6 {[%clk 0:02:21]} 13. d5 {[%clk 0:02:00]}  Nd8 {[%clk 0:02:19]} 14. Ne3 {[%clk 0:02:00]}  g6 {[%clk 0:02:13]} 15. c4 {[%clk 0:01:51]}  Kg7 {[%clk 0:02:07]} 16. Qd2 {[%clk 0:01:50]}  Ng5 {[%clk 0:02:03]} 17. Nxg5 {[%clk 0:01:45]}  hxg5 {[%clk 0:02:02]} 18. Ng4 {[%clk 0:01:25]}  Rh8 {[%clk 0:01:49]} 19. f4 {[%clk 0:01:09]}  gxf4 {[%clk 0:01:46]} 20. Rxf4 {[%clk 0:01:06]}  exf4 {[%clk 0:01:42]} 21. Bxf6+ {[%clk 0:01:03]}  Qxf6 {[%clk 0:01:43]} 22. Nxf6 {[%clk 0:01:02]}  Kxf6 {[%clk 0:01:44]} 23. Rf1 {[%clk 0:00:26]}  Nf7 {[%clk 0:01:26]} 24. Qc3+ {[%clk 0:00:13]}  Ke7 {[%clk 0:01:08]} 25. c5 {[%clk 0:00:12]}  Be5 {[%clk 0:01:08]} 26. Qb3 {[%clk 0:00:10]}  d6 {[%clk 0:01:06]} 27. c6 {[%clk 0:00:06]}  bxc6 {[%clk 0:01:02]} 28. dxc6 {[%clk 0:00:06]}  Be6 {[%clk 0:01:02]} 29. Bc4 {[%clk 0:00:06]}  Bxc4 {[%clk 0:01:01]} 30. Qxc4 {[%clk 0:00:00]}  Rab8 {[%clk 0:01:00]} 0-1


[Site "https://www.chess.com"]

[Event "Titled Tuesday Blitz July 4 Late 2023"]
[White "Slovineanu, Viacheslav"]
[Black "Gyulamiryan-koryun"]
[WhiteFideId "13900510"]
[WhiteElo "2349"]
[BlackElo "1722"]
[Result "1-0"]
[Round "5"]
[TimeControl "180+2"]
[Date "2023.07.04"]
[WhiteClock "0:00:53"]
[BlackClock "0:00:17"]
[Board "152"]

1. d4 {[%clk 0:02:55]}  Nf6 {[%clk 0:02:59]} 2. Nf3 {[%clk 0:02:54]}  g6 {[%clk 0:02:58]} 3. Nbd2 {[%clk 0:02:53]}  Bg7 {[%clk 0:02:58]} 4. e4 {[%clk 0:02:53]}  d6 {[%clk 0:02:58]} 5. Bd3 {[%clk 0:02:53]}  O-O {[%clk 0:02:57]} 6. O-O {[%clk 0:02:53]}  Nbd7 {[%clk 0:02:56]} 7. Re1 {[%clk 0:02:51]}  e5 {[%clk 0:02:48]} 8. dxe5 {[%clk 0:02:51]}  Nxe5 {[%clk 0:02:47]} 9. Nxe5 {[%clk 0:02:50]}  dxe5 {[%clk 0:02:47]} 10. a4 {[%clk 0:02:50]}  a6 {[%clk 0:02:45]} 11. a5 {[%clk 0:02:45]}  Qd4 {[%clk 0:02:35]} 12. Nb3 {[%clk 0:02:37]}  Qd6 {[%clk 0:02:23]} 13. Be3 {[%clk 0:02:36]}  Rd8 {[%clk 0:02:16]} 14. Qe2 {[%clk 0:02:16]}  Ng4 {[%clk 0:02:10]} 15. Bc5 {[%clk 0:02:12]}  Qc6 {[%clk 0:02:04]} 16. f3 {[%clk 0:02:07]}  Nf6 {[%clk 0:02:00]} 17. Bc4 {[%clk 0:01:54]}  Be6 {[%clk 0:01:59]} 18. Bxe6 {[%clk 0:01:47]}  Qxe6 {[%clk 0:01:55]} 19. Red1 {[%clk 0:01:45]}  Nh5 {[%clk 0:01:55]} 20. g3 {[%clk 0:01:45]}  Qh3 {[%clk 0:01:47]} 21. Be3 {[%clk 0:01:32]}  Nf6 {[%clk 0:01:42]} 22. Rxd8+ {[%clk 0:01:29]}  Rxd8 {[%clk 0:01:41]} 23. Rd1 {[%clk 0:01:29]}  Rd7 {[%clk 0:01:22]} 24. Nc5 {[%clk 0:01:24]}  Rxd1+ {[%clk 0:01:15]} 25. Qxd1 {[%clk 0:01:24]}  Nh5 {[%clk 0:01:08]} 26. Qd8+ {[%clk 0:01:16]}  Bf8 {[%clk 0:01:07]} 27. Nd7 {[%clk 0:01:11]}  Qxd7 {[%clk 0:00:45]} 28. Qxd7 {[%clk 0:01:09]}  Bd6 {[%clk 0:00:44]} 29. c4 {[%clk 0:01:02]}  Nf6 {[%clk 0:00:40]} 30. Qd8+ {[%clk 0:01:02]}  Kg7 {[%clk 0:00:38]} 31. Bh6+ {[%clk 0:01:00]}  Kxh6 {[%clk 0:00:37]} 32. Qxf6 {[%clk 0:00:59]}  Bb4 {[%clk 0:00:28]} 33. Qxe5 {[%clk 0:00:57]}  c6 {[%clk 0:00:20]} 34. Kg2 {[%clk 0:00:57]}  c5 {[%clk 0:00:19]} 35. g4 {[%clk 0:00:55]}  g5 {[%clk 0:00:17]} 36. Qf6# {[%clk 0:00:53]} 1-0


[Site "https://www.chess.com"]

[Event "Titled Tuesday Blitz July 4 Late 2023"]
[White "Saucey, Michel"]
[Black "Makridis, Dimitrios"]
[WhiteFideId "601845"]
[BlackFideId "25864475"]
[WhiteElo "2265"]
[BlackElo "2774"]
[Result "1-0"]
[Round "5"]
[TimeControl "180+2"]
[Date "2023.07.04"]
[WhiteClock "0:01:12"]
[BlackClock "0:00:15"]
[Board "153"]

1. d4 {[%clk 0:03:00]}  Nf6 {[%clk 0:02:57]} 2. Nf3 {[%clk 0:03:00]}  e6 {[%clk 0:02:58]} 3. c4 {[%clk 0:02:59]}  c5 {[%clk 0:02:59]} 4. d5 {[%clk 0:02:57]}  d6 {[%clk 0:02:55]} 5. Nc3 {[%clk 0:02:56]}  exd5 {[%clk 0:02:54]} 6. cxd5 {[%clk 0:02:56]}  g6 {[%clk 0:02:54]} 7. Nd2 {[%clk 0:02:56]}  Bg7 {[%clk 0:02:52]} 8. e4 {[%clk 0:02:56]}  O-O {[%clk 0:02:51]} 9. Be2 {[%clk 0:02:56]}  a6 {[%clk 0:02:50]} 10. a4 {[%clk 0:02:56]}  Re8 {[%clk 0:02:51]} 11. O-O {[%clk 0:02:55]}  Nbd7 {[%clk 0:02:49]} 12. Re1 {[%clk 0:02:54]}  h5 {[%clk 0:02:48]} 13. h3 {[%clk 0:02:52]}  b6 {[%clk 0:02:38]} 14. Bf1 {[%clk 0:02:47]}  Bb7 {[%clk 0:02:31]} 15. Nc4 {[%clk 0:02:46]}  Ne5 {[%clk 0:02:30]} 16. Na3 {[%clk 0:02:35]}  h4 {[%clk 0:02:23]} 17. Bg5 {[%clk 0:02:33]}  Qc7 {[%clk 0:02:16]} 18. Bxh4 {[%clk 0:02:32]}  Nh5 {[%clk 0:02:08]} 19. Nc4 {[%clk 0:02:00]}  Nxc4 {[%clk 0:02:06]} 20. Bxc4 {[%clk 0:01:59]}  Be5 {[%clk 0:01:49]} 21. Qf3 {[%clk 0:01:49]}  Qd7 {[%clk 0:01:15]} 22. g4 {[%clk 0:01:39]}  Nf4 {[%clk 0:01:15]} 23. Bg5 {[%clk 0:01:39]}  Nxh3+ {[%clk 0:00:40]} 24. Qxh3 {[%clk 0:01:38]}  Kg7 {[%clk 0:00:40]} 25. Qh6+ {[%clk 0:01:36]}  Kg8 {[%clk 0:00:40]} 26. f3 {[%clk 0:01:25]}  Bg7 {[%clk 0:00:33]} 27. Qh4 {[%clk 0:01:25]}  f5 {[%clk 0:00:23]} 28. Kg2 {[%clk 0:01:17]}  fxe4 {[%clk 0:00:15]} 29. Nxe4 {[%clk 0:01:12]} 1-0


[Site "https://www.chess.com"]

[Event "Titled Tuesday Blitz July 4 Late 2023"]
[White "Modric, Nesa"]
[Black "Coelho, Ramyres Santana"]
[WhiteFideId "922579"]
[BlackFideId "2120690"]
[WhiteElo "2246"]
[BlackElo "2296"]
[Result "0-1"]
[Round "5"]
[TimeControl "180+2"]
[Date "2023.07.04"]
[WhiteClock "0:00:00"]
[BlackClock "0:01:41"]
[Board "155"]

1. e4 {[%clk 0:03:00]}  c5 {[%clk 0:02:55]} 2. c3 {[%clk 0:03:00]}  d5 {[%clk 0:02:54]} 3. exd5 {[%clk 0:03:01]}  Qxd5 {[%clk 0:02:55]} 4. Nf3 {[%clk 0:03:01]}  e5 {[%clk 0:02:54]} 5. Na3 {[%clk 0:02:59]}  Nf6 {[%clk 0:02:48]} 6. Bc4 {[%clk 0:02:59]}  Qe4+ {[%clk 0:02:44]} 7. Be2 {[%clk 0:02:58]}  Nc6 {[%clk 0:02:40]} 8. O-O {[%clk 0:02:58]}  Bd6 {[%clk 0:02:35]} 9. Re1 {[%clk 0:02:46]}  O-O {[%clk 0:02:32]} 10. Nc4 {[%clk 0:01:58]}  Bc7 {[%clk 0:02:27]} 11. d3 {[%clk 0:01:55]}  Qf5 {[%clk 0:02:25]} 12. Ne3 {[%clk 0:01:49]}  Qd7 {[%clk 0:02:23]} 13. Qc2 {[%clk 0:01:38]}  Rd8 {[%clk 0:02:22]} 14. a4 {[%clk 0:01:23]}  h6 {[%clk 0:02:22]} 15. Nc4 {[%clk 0:01:18]}  Qd5 {[%clk 0:02:15]} 16. Bf1 {[%clk 0:01:13]}  Bf5 {[%clk 0:02:15]} 17. Ne3 {[%clk 0:01:06]}  Qe6 {[%clk 0:02:07]} 18. Nxf5 {[%clk 0:01:03]}  Qxf5 {[%clk 0:02:08]} 19. Be3 {[%clk 0:00:57]}  b6 {[%clk 0:02:07]} 20. Rad1 {[%clk 0:00:54]}  Ng4 {[%clk 0:02:07]} 21. h3 {[%clk 0:00:48]}  Nxe3 {[%clk 0:02:06]} 22. Rxe3 {[%clk 0:00:47]}  Rd7 {[%clk 0:02:04]} 23. Rde1 {[%clk 0:00:36]}  Re8 {[%clk 0:02:03]} 24. Nh4 {[%clk 0:00:24]}  Qg5 {[%clk 0:02:02]} 25. Nf3 {[%clk 0:00:22]}  Qf4 {[%clk 0:02:00]} 26. Re4 {[%clk 0:00:20]}  Qf6 {[%clk 0:01:59]} 27. d4 {[%clk 0:00:10]}  cxd4 {[%clk 0:01:58]} 28. cxd4 {[%clk 0:00:06]}  Nb4 {[%clk 0:01:50]} 29. Qb3 {[%clk 0:00:05]}  Nd5 {[%clk 0:01:48]} 30. Bb5 {[%clk 0:00:04]}  Red8 {[%clk 0:01:43]} 31. Bxd7 {[%clk 0:00:03]}  Rxd7 {[%clk 0:01:44]} 32. dxe5 {[%clk 0:00:01]}  Qe6 {[%clk 0:01:41]} 33. Nd4 {[%clk 0:00:01]}  Qe7 {[%clk 0:01:39]} 34. e6 {[%clk 0:00:01]}  f5 {[%clk 0:01:39]} 35. exd7 {[%clk 0:00:01]}  Qf6 {[%clk 0:01:40]} 36. d8=Q+ {[%clk 0:00:01]}  Bxd8 {[%clk 0:01:39]} 37. Qxd5+ {[%clk 0:00:01]}  Kh7 {[%clk 0:01:40]} 38. Re6 {[%clk 0:00:00]}  Qg6 {[%clk 0:01:41]} 0-1


[Site "https://www.chess.com"]

[Event "Titled Tuesday Blitz July 4 Late 2023"]
[White "Alexikov, Alexander"]
[Black "Vila Dupla, Aurelio"]
[WhiteFideId "14103958"]
[BlackFideId "2203383"]
[WhiteElo "2278"]
[BlackElo "2151"]
[Result "0-1"]
[Round "5"]
[TimeControl "180+2"]
[Date "2023.07.04"]
[WhiteClock "0:00:00"]
[BlackClock "0:00:14"]
[Board "158"]

1. e4 {[%clk 0:03:00]}  c5 {[%clk 0:02:57]} 2. Nf3 {[%clk 0:03:00]}  d6 {[%clk 0:02:54]} 3. d4 {[%clk 0:03:00]}  cxd4 {[%clk 0:02:54]} 4. Nxd4 {[%clk 0:02:56]}  Nf6 {[%clk 0:02:53]} 5. Nc3 {[%clk 0:02:54]}  g6 {[%clk 0:02:52]} 6. Be3 {[%clk 0:02:51]}  Bg7 {[%clk 0:02:52]} 7. f3 {[%clk 0:02:51]}  O-O {[%clk 0:02:52]} 8. Qd2 {[%clk 0:02:51]}  Nc6 {[%clk 0:02:52]} 9. O-O-O {[%clk 0:02:51]}  d5 {[%clk 0:02:52]} 10. Qe1 {[%clk 0:02:51]}  e5 {[%clk 0:02:51]} 11. Nxc6 {[%clk 0:02:49]}  bxc6 {[%clk 0:02:51]} 12. Bc4 {[%clk 0:02:49]}  Be6 {[%clk 0:02:49]} 13. Bb3 {[%clk 0:02:49]}  Re8 {[%clk 0:02:23]} 14. exd5 {[%clk 0:02:42]}  Nxd5 {[%clk 0:02:22]} 15. Ne4 {[%clk 0:02:33]}  Qc7 {[%clk 0:01:57]} 16. Nc5 {[%clk 0:02:27]}  Bf5 {[%clk 0:01:21]} 17. g4 {[%clk 0:02:06]}  Nxe3 {[%clk 0:01:19]} 18. Qxe3 {[%clk 0:02:06]}  Bc8 {[%clk 0:01:15]} 19. h3 {[%clk 0:01:50]}  Rb8 {[%clk 0:01:14]} 20. f4 {[%clk 0:01:35]}  Rf8 {[%clk 0:00:57]} 21. fxe5 {[%clk 0:01:20]}  Bxe5 {[%clk 0:00:39]} 22. Rhf1 {[%clk 0:01:12]}  a5 {[%clk 0:00:35]} 23. Rde1 {[%clk 0:00:45]}  Bg7 {[%clk 0:00:31]} 24. Rxf7 {[%clk 0:00:31]}  Rxf7 {[%clk 0:00:21]} 25. Qe8+ {[%clk 0:00:24]}  Bf8 {[%clk 0:00:21]} 26. Bc4 {[%clk 0:00:00]}  Be6 {[%clk 0:00:14]} 0-1


[Site "https://www.chess.com"]

[Event "Titled Tuesday Blitz July 4 Late 2023"]
[White "Francisco_Ferrari"]
[Black "Fernandez Bustamante, Leancy B."]
[BlackFideId "3523870"]
[WhiteElo "2185"]
[BlackElo "2086"]
[Result "0-1"]
[Round "5"]
[TimeControl "180+2"]
[Date "2023.07.04"]
[WhiteClock "0:00:00"]
[BlackClock "0:00:24"]
[Board "161"]

1. e4 {[%clk 0:02:51]}  c5 {[%clk 0:03:00]} 2. Nf3 {[%clk 0:02:45]}  a6 {[%clk 0:03:01]} 3. c4 {[%clk 0:02:39]}  Nc6 {[%clk 0:02:58]} 4. d4 {[%clk 0:02:36]}  cxd4 {[%clk 0:02:59]} 5. Nxd4 {[%clk 0:02:36]}  Nxd4 {[%clk 0:02:59]} 6. Qxd4 {[%clk 0:02:35]}  d6 {[%clk 0:03:00]} 7. Nc3 {[%clk 0:02:29]}  Nf6 {[%clk 0:02:59]} 8. Be2 {[%clk 0:02:28]}  g6 {[%clk 0:02:58]} 9. O-O {[%clk 0:02:25]}  Bg7 {[%clk 0:02:57]} 10. Be3 {[%clk 0:02:21]}  O-O {[%clk 0:02:56]} 11. Qd1 {[%clk 0:01:46]}  Be6 {[%clk 0:02:52]} 12. Rc1 {[%clk 0:01:33]}  Qa5 {[%clk 0:02:49]} 13. b3 {[%clk 0:01:19]}  Rfc8 {[%clk 0:02:47]} 14. f4 {[%clk 0:01:12]}  Ng4 {[%clk 0:02:43]} 15. Bd4 {[%clk 0:01:11]}  Bxd4+ {[%clk 0:02:41]} 16. Qxd4 {[%clk 0:01:12]}  Nf6 {[%clk 0:02:30]} 17. f5 {[%clk 0:00:49]}  Bd7 {[%clk 0:02:26]} 18. fxg6 {[%clk 0:00:48]}  hxg6 {[%clk 0:02:27]} 19. Rxf6 {[%clk 0:00:45]}  exf6 {[%clk 0:02:28]} 20. Nd5 {[%clk 0:00:45]}  Be6 {[%clk 0:02:11]} 21. Ne7+ {[%clk 0:00:07]}  Kg7 {[%clk 0:02:08]} 22. Nxc8 {[%clk 0:00:08]}  Rxc8 {[%clk 0:02:07]} 23. Qxd6 {[%clk 0:00:05]}  Rd8 {[%clk 0:02:04]} 24. Qf4 {[%clk 0:00:06]}  Rd2 {[%clk 0:01:54]} 25. Rf1 {[%clk 0:00:04]}  Rxe2 {[%clk 0:01:50]} 26. Qxf6+ {[%clk 0:00:05]}  Kg8 {[%clk 0:01:48]} 27. h4 {[%clk 0:00:05]}  Qc5+ {[%clk 0:01:46]} 28. Kh1 {[%clk 0:00:05]}  Qh5 {[%clk 0:01:42]} 29. Rd1 {[%clk 0:00:03]}  Kh7 {[%clk 0:01:32]} 30. Rd8 {[%clk 0:00:00]}  Re1+ {[%clk 0:00:24]} 0-1


[Site "https://www.chess.com"]

[Event "Titled Tuesday Blitz July 4 Late 2023"]
[White "Horokoskii"]
[Black "Cueto, Jonny"]
[BlackFideId "3300145"]
[WhiteElo "2067"]
[BlackElo "2185"]
[Result "1-0"]
[Round "5"]
[TimeControl "180+2"]
[Date "2023.07.04"]
[WhiteClock "0:00:23"]
[BlackClock "0:00:03"]
[Board "162"]

1. d4 {[%clk 0:02:52]}  e6 {[%clk 0:03:00]} 2. c4 {[%clk 0:02:49]}  Nf6 {[%clk 0:03:00]} 3. Nc3 {[%clk 0:02:48]}  Bb4 {[%clk 0:02:58]} 4. e3 {[%clk 0:02:47]}  b6 {[%clk 0:02:59]} 5. Ne2 {[%clk 0:02:46]}  Bb7 {[%clk 0:02:59]} 6. f3 {[%clk 0:02:47]}  d5 {[%clk 0:02:59]} 7. a3 {[%clk 0:02:47]}  Bd6 {[%clk 0:02:58]} 8. cxd5 {[%clk 0:02:32]}  exd5 {[%clk 0:02:57]} 9. Ng3 {[%clk 0:02:29]}  Qd7 {[%clk 0:02:45]} 10. Bd3 {[%clk 0:02:28]}  O-O {[%clk 0:02:44]} 11. Nf5 {[%clk 0:02:28]}  Re8 {[%clk 0:02:42]} 12. Nxd6 {[%clk 0:02:27]}  Qxd6 {[%clk 0:02:43]} 13. O-O {[%clk 0:02:27]}  c5 {[%clk 0:02:42]} 14. Nb5 {[%clk 0:02:20]}  Qd7 {[%clk 0:02:39]} 15. dxc5 {[%clk 0:02:15]}  bxc5 {[%clk 0:02:36]} 16. Nc3 {[%clk 0:02:12]}  Nc6 {[%clk 0:02:10]} 17. e4 {[%clk 0:02:11]}  dxe4 {[%clk 0:02:09]} 18. Nxe4 {[%clk 0:02:11]}  Nxe4 {[%clk 0:02:08]} 19. Bxe4 {[%clk 0:02:11]}  Rad8 {[%clk 0:01:52]} 20. Qxd7 {[%clk 0:02:03]}  Rxd7 {[%clk 0:01:53]} 21. Bf4 {[%clk 0:01:58]}  g6 {[%clk 0:01:52]} 22. Rfd1 {[%clk 0:01:57]}  Rxd1+ {[%clk 0:01:50]} 23. Rxd1 {[%clk 0:01:56]}  Nd4 {[%clk 0:01:37]} 24. Bxb7 {[%clk 0:01:49]}  Ne2+ {[%clk 0:01:37]} 25. Kf2 {[%clk 0:01:49]}  Nxf4 {[%clk 0:01:37]} 26. g3 {[%clk 0:01:44]}  Re2+ {[%clk 0:01:26]} 27. Kf1 {[%clk 0:01:43]}  Rxb2 {[%clk 0:01:26]} 28. Bd5 {[%clk 0:01:28]}  Nh3 {[%clk 0:01:17]} 29. Rc1 {[%clk 0:01:15]}  Rf2+ {[%clk 0:01:07]} 30. Ke1 {[%clk 0:01:15]}  Rxh2 {[%clk 0:01:08]} 31. Rxc5 {[%clk 0:01:14]}  Rh1+ {[%clk 0:01:04]} 32. Ke2 {[%clk 0:01:12]}  Ng5 {[%clk 0:00:41]} 33. Ra5 {[%clk 0:01:04]}  Rg1 {[%clk 0:00:19]} 34. g4 {[%clk 0:01:02]}  Rg2+ {[%clk 0:00:16]} 35. Ke3 {[%clk 0:01:00]}  Rg1 {[%clk 0:00:06]} 36. Rxa7 {[%clk 0:01:00]}  Re1+ {[%clk 0:00:06]} 37. Kf2 {[%clk 0:00:57]}  Ra1 {[%clk 0:00:07]} 38. f4 {[%clk 0:00:55]}  Nh3+ {[%clk 0:00:07]} 39. Kg3 {[%clk 0:00:53]}  Ng1 {[%clk 0:00:08]} 40. Bxf7+ {[%clk 0:00:53]}  Kf8 {[%clk 0:00:06]} 41. Bd5 {[%clk 0:00:50]}  Ne2+ {[%clk 0:00:06]} 42. Kf3 {[%clk 0:00:43]}  Nc3 {[%clk 0:00:06]} 43. Bc6 {[%clk 0:00:33]}  Rc1 {[%clk 0:00:05]} 44. a4 {[%clk 0:00:30]}  Nd1 {[%clk 0:00:06]} 45. Bb5 {[%clk 0:00:29]}  Rc3+ {[%clk 0:00:06]} 46. Ke4 {[%clk 0:00:28]}  Re3+ {[%clk 0:00:06]} 47. Kd4 {[%clk 0:00:27]}  Ra3 {[%clk 0:00:06]} 48. Rxh7 {[%clk 0:00:26]}  Nb2 {[%clk 0:00:05]} 49. Ke5 {[%clk 0:00:24]}  Re3+ {[%clk 0:00:04]} 50. Kf6 {[%clk 0:00:23]}  Rf3 {[%clk 0:00:03]} 51. Rh8# {[%clk 0:00:23]} 1-0


[Site "https://www.chess.com"]

[Event "Titled Tuesday Blitz July 4 Late 2023"]
[White "Bluebaum, Matthias"]
[Black "Nakamura, Hikaru"]
[WhiteFideId "24651516"]
[BlackFideId "2016192"]
[WhiteElo "3032"]
[BlackElo "3182"]
[Result "1-0"]
[Round "6"]
[TimeControl "180+2"]
[Date "2023.07.04"]
[WhiteClock "0:00:33"]
[BlackClock "0:00:16"]
[Board "4"]

1. d4 {[%clk 0:03:00]}  Nf6 {[%clk 0:02:56]} 2. c4 {[%clk 0:02:59]}  b6 {[%clk 0:02:57]} 3. Nc3 {[%clk 0:02:57]}  Bb7 {[%clk 0:02:56]} 4. Qc2 {[%clk 0:02:58]}  d5 {[%clk 0:02:56]} 5. cxd5 {[%clk 0:02:59]}  Nxd5 {[%clk 0:02:57]} 6. Nf3 {[%clk 0:03:00]}  e6 {[%clk 0:02:56]} 7. e4 {[%clk 0:02:59]}  Nxc3 {[%clk 0:02:57]} 8. bxc3 {[%clk 0:03:00]}  Be7 {[%clk 0:02:56]} 9. Be3 {[%clk 0:02:52]}  O-O {[%clk 0:02:52]} 10. Bd3 {[%clk 0:02:50]}  c5 {[%clk 0:02:50]} 11. Rd1 {[%clk 0:02:48]}  cxd4 {[%clk 0:02:49]} 12. cxd4 {[%clk 0:02:48]}  Nc6 {[%clk 0:02:49]} 13. Qe2 {[%clk 0:02:47]}  Bb4+ {[%clk 0:02:46]} 14. Kf1 {[%clk 0:02:46]}  Be7 {[%clk 0:02:46]} 15. h4 {[%clk 0:02:45]}  Nb4 {[%clk 0:02:46]} 16. d5 {[%clk 0:02:09]}  exd5 {[%clk 0:02:40]} 17. exd5 {[%clk 0:02:10]}  Nxd3 {[%clk 0:02:27]} 18. Qxd3 {[%clk 0:02:11]}  Qd7 {[%clk 0:02:05]} 19. Ng5 {[%clk 0:02:10]}  f5 {[%clk 0:02:05]} 20. Bf4 {[%clk 0:01:23]}  Qa4 {[%clk 0:01:57]} 21. Qf3 {[%clk 0:01:11]}  Rad8 {[%clk 0:01:38]} 22. Kg1 {[%clk 0:01:05]}  Qc4 {[%clk 0:01:32]} 23. Qe3 {[%clk 0:01:03]}  Bc5 {[%clk 0:00:32]} 24. Qe6+ {[%clk 0:00:59]}  Kh8 {[%clk 0:00:32]} 25. Be5 {[%clk 0:00:43]}  Bxd5 {[%clk 0:00:30]} 26. Qh6 {[%clk 0:00:32]}  Bxf2+ {[%clk 0:00:29]} 27. Kxf2 {[%clk 0:00:33]}  Qc2+ {[%clk 0:00:16]} 28. Ke1 {[%clk 0:00:33]} 1-0


[Site "https://www.chess.com"]